bitfinex/quotes_SOLUSD_20241010
["timestamp","ask_amount","ask_price","bid_price","bid_amount"]
[1728551161792,7.87206138,138.52,138.48,22.2512]
[1728551162104,7.87206138,138.52,138.5,18.0501]
[1728551162295,7.87206138,138.52,138.51,7.2196]
[1728551163719,7.87206138,138.52,138.51,30.996484]
[1728551164285,0.46892,138.56,138.52,23.776884]
[1728551164487,0.46892,138.56,138.54,7.218]
[1728551164687,0.46892,138.58,138.54,7.218]
[1728551165120,7.68502,138.58,138.54,7.218]
[1728551165705,0.46892,138.57,138.55,7.2175]
[1728551166717,0.46892,138.58,138.55,7.2175]
[1728551167099,0.46892,138.58,138.56,7.217]
[1728551167990,0.46892,138.59,138.56,7.217]
[1728551168191,0.46892,138.61,138.58,7.2159]
[1728551169015,22.2126,138.66,138.62,7.2139]
[1728551169016,0.46892,138.64,138.62,7.2139]
[1728551169220,9.52426394,138.67,138.64,7.2128]
[1728551169517,9.52426394,138.67,138.65,7.2121]
[1728551170418,0.46892,138.66,138.64,25.2444]
[1728551170905,9.52426394,138.67,138.64,25.2444]
[1728551171102,9.52426394,138.67,138.64,18.0316]
[1728551171411,9.52426394,138.67,138.66,30.988684]
[1728551172194,0.46892,138.7,138.67,7.2112]
[1728551173107,0.46892,138.7,138.66,7.2117]
[1728551174414,7.2088,138.72,138.67,7.2109]
[1728551174633,20.46892,138.73,138.69,7.2101]
[1728551175918,7.2088,138.72,138.68,41.803384]
[1728551176238,0.46892,138.71,138.68,18.0265]
[1728551176626,7.67822,138.71,138.68,18.0265]
[1728551176813,7.67822,138.71,138.67,30.3878]
[1728551177020,0.46892,138.71,138.67,30.3878]
[1728551177218,0.46892,138.71,138.68,7.2106]
[1728551177429,7.2088,138.72,138.68,7.2106]
[1728551177726,7.67672,138.74,138.69,1.44195466]
[1728551177912,7.67672,138.74,138.7,23.776884]
[1728551178305,0.46892,138.73,138.7,23.776884]
[1728551180822,0.46892,138.73,138.69,7.2101]
[1728551181334,7.67722,138.73,138.69,7.2101]
[1728551181539,0.46892,138.72,138.69,7.2101]
[1728551182345,0.46892,138.72,138.68,30.987584]
[1728551184048,0.46892,138.72,138.69,7.2101]
[1728551186323,0.46892,138.72,138.68,23.776884]
[1728551186525,0.46892,138.72,138.68,30.987484]
[1728551187416,7.67772,138.72,138.68,30.987484]
[1728551187645,0.46892,138.71,138.67,23.177]
[1728551187943,18.0221,138.72,138.64,18.0322]
[1728551188240,7.2101,138.7,138.66,7.2118]
[1728551188650,7.2093,138.71,138.67,7.2113]
[1728551188942,0.46892,138.7,138.67,7.2113]
[1728551190155,0.46892,138.7,138.66,7.2117]
[1728551190338,7.2098,138.7,138.66,7.2117]
[1728551190541,0.46892,138.69,138.66,7.2117]
[1728551191439,0.12549,138.73,138.65,23.776884]
[1728551191629,7.2094,138.71,138.67,7.211]
[1728551191830,0.46892,138.7,138.67,7.211]
[1728551192551,14.19990794,138.73,138.68,18.0266]
[1728551192792,7.67742,138.73,138.69,7.2101]
[1728551194334,0.46892,138.73,138.7,7.2096]
[1728551197732,0.46892,138.73,138.68,40.2083]
[1728551197942,20.0,138.75,138.68,40.2083]
[1728551197943,7.2093,138.71,138.68,40.2083]
[1728551198145,7.2088,138.72,138.68,47.4191]
[1728551198653,0.46892,138.71,138.68,47.4191]
[1728551200057,7.67852,138.71,138.68,22.1817]
[1728551200647,7.67852,138.71,138.68,15.9679]
[1728551201242,7.2099,138.7,138.66,7.2117]
[1728551201444,7.67962,138.69,138.66,23.776884]
[1728551202763,7.67962,138.69,138.66,30.988684]
[1728551202965,7.67962,138.69,138.66,23.776884]
[1728551203271,7.2112,138.68,138.64,7.2127]
[1728551203439,12.0554,138.73,138.62,40.1012]
[1728551203440,0.46892,138.67,138.62,40.1012]
[1728551203757,7.212,138.66,138.62,41.0891]
[1728551203963,0.46892,138.65,138.62,18.0336]
[1728551204382,0.46892,138.69,138.6,21.6963]
[1728551204536,7.2132,138.64,138.6,28.9112]
[1728551204740,0.46892,138.63,138.6,21.6963]
[1728551204953,7.2141,138.62,138.59,18.0377]
[1728551205160,7.2132,138.64,138.59,25.253]
[1728551205360,0.46892,138.63,138.59,25.253]
[1728551205663,7.68252,138.63,138.59,25.253]
[1728551206364,0.46892,138.62,138.59,25.253]
[1728551207647,7.2129,138.64,138.6,23.776884]
[1728551207842,0.46892,138.63,138.6,23.776884]
[1728551208043,0.46892,138.63,138.6,30.991784]
[1728551208748,7.68092,138.66,138.62,7.2138]
[1728551209257,21.39939292,138.66,138.61,18.0355]
[1728551209470,0.46892,138.65,138.62,30.990784]
[1728551209661,7.212,138.66,138.62,30.990784]
[1728551210259,7.68092,138.66,138.62,30.990784]
[1728551210572,7.212,138.66,138.62,30.990784]
[1728551210948,0.46892,138.65,138.62,30.990784]
[1728551211249,7.212,138.66,138.62,30.990784]
[1728551212364,7.68142,138.65,138.62,23.776884]
[1728551213249,7.2125,138.65,138.62,25.21948975]
[1728551213444,0.46892,138.66,138.63,7.2133]
[1728551213977,7.68072,138.66,138.62,49.024784]
[1728551214269,7.2118,138.66,138.62,49.024784]
[1728551214442,7.2118,138.66,138.62,50.46738729]
[1728551214642,0.46892,138.68,138.63,8.65560197]
[1728551214859,7.68012,138.68,138.64,7.2128]
[1728551216075,7.2113,138.67,138.63,7.2133]
[1728551216539,7.2113,138.67,138.62,49.024684]
[1728551216743,7.2119,138.66,138.62,49.024684]
[1728551217669,7.2115,138.67,138.62,49.024684]
[1728551218053,7.67982,138.68,138.64,23.776884]
[1728551218256,0.46892,138.68,138.62,41.810984]
[1728551218555,0.46892,138.69,138.62,41.810984]
[1728551219571,7.2109,138.68,138.65,23.776884]
[1728551220363,0.46892,138.69,138.65,30.989184]
[1728551220364,7.67962,138.69,138.65,30.989184]
[1728551220672,7.2107,138.69,138.65,30.989184]
[1728551221055,7.2099,138.7,138.66,8.65400535]
[1728551222565,0.46892,138.73,138.65,23.776884]
[1728551222566,0.46892,138.69,138.65,23.776884]
[1728551222800,18.61651,138.72,138.65,23.776884]
[1728551223072,7.2114,138.67,138.65,23.776884]
[1728551223382,7.2118,138.66,138.64,23.776884]
[1728551223673,7.2124,138.65,138.61,47.0007]
[1728551223975,7.212,138.66,138.62,7.2139]
[1728551224661,7.212,138.66,138.63,23.776884]
[1728551224866,7.68172,138.65,138.61,47.0008]
[1728551225058,0.46892,138.65,138.61,21.7512]
[1728551225262,18.03,138.66,138.58,40.8002]
[1728551225462,0.46892,138.65,138.58,40.8002]
[1728551225668,7.2135,138.63,138.59,7.2154]
[1728551227378,7.2135,138.63,138.6,23.776884]
[1728551228288,7.213,138.64,138.6,30.991784]
[1728551228661,0.46892,138.65,138.62,25.2482]
[1728551228860,0.46892,138.65,138.59,23.776884]
[1728551229061,7.2148,138.61,138.59,23.776884]
[1728551229562,0.46892,138.64,138.59,23.776884]
[1728551229762,7.215,138.6,138.58,22.7611]
[1728551229962,7.2157,138.59,138.55,7.2174]
[1728551230472,7.2157,138.59,138.54,29.8233]
[1728551230655,7.2162,138.58,138.54,29.8233]
[1728551231065,20.46892,138.62,138.54,29.8233]
[1728551231263,0.12549,138.61,138.54,29.8233]
[1728551231584,0.12549,138.61,138.54,22.6054]
[1728551231881,7.2166,138.57,138.54,22.6054]
[1728551233080,7.2162,138.58,138.54,22.6054]
[1728551233769,20.46892,138.6,138.55,23.776884]
[1728551234066,7.2161,138.58,138.55,23.776884]
[1728551236667,28.33660676,138.6,138.55,23.776884]
[1728551236989,7.2166,138.57,138.54,22.6054]
[1728551238672,7.2166,138.57,138.54,24.0487721]
[1728551239391,7.2166,138.57,138.54,22.6054]
[1728551240581,28.33660676,138.6,138.54,22.6054]
[1728551240779,28.33660676,138.6,138.53,23.776884]
[1728551240780,7.2174,138.56,138.53,23.776884]
[1728551241565,7.218,138.55,138.51,16.1371]
[1728551241973,0.46892,138.54,138.51,16.1371]
[1728551242194,7.2191,138.52,138.49,18.0508]
[1728551244188,7.2188,138.53,138.49,18.0508]
[1728551244781,0.12549,138.56,138.5,23.776884]
[1728551244976,7.2191,138.52,138.5,23.776884]
[1728551246098,7.2191,138.52,138.48,7.221]
[1728551246274,7.2197,138.51,138.47,29.7809]
[1728551247291,7.2189,138.53,138.5,23.776884]
[1728551247601,7.68822,138.52,138.49,23.776884]
[1728551247769,7.2199,138.51,138.48,18.0527]
[1728551248298,0.12549,138.54,138.48,18.0527]
[1728551248494,0.12549,138.54,138.49,25.22088198]
[1728551248702,20.46892,138.55,138.49,25.22088198]
[1728551249097,20.46892,138.55,138.49,25.22074337]
[1728551249614,0.46892,138.55,138.51,23.776884]
[1728551249782,7.68632,138.56,138.52,7.2191]
[1728551249981,7.68632,138.56,138.53,23.776884]
[1728551250209,0.46892,138.56,138.51,23.776884]
[1728551250400,18.0396,138.59,138.51,23.776884]
[1728551250401,7.2176,138.55,138.51,30.996384]
[1728551250915,7.2176,138.55,138.51,32.44004456]
[1728551251709,7.2176,138.55,138.51,32.44002082]
[1728551251986,7.2172,138.56,138.52,7.2191]
[1728551252204,7.2172,138.56,138.53,23.776884]
[1728551252796,7.2176,138.55,138.53,23.776884]
[1728551253004,7.2171,138.56,138.53,23.776884]
[1728551254999,7.68562,138.57,138.53,32.43901442]
[1728551255336,7.2174,138.56,138.53,23.776884]
[1728551256316,7.2174,138.56,138.52,25.2667]
[1728551256615,7.2174,138.56,138.53,1.44353646]
[1728551256924,7.2174,138.56,138.52,25.2667]
[1728551257292,7.2174,138.56,138.53,1.4435347]
[1728551257718,7.2165,138.57,138.53,30.995484]
[1728551258691,7.68502,138.58,138.54,7.218]
[1728551258898,0.46892,138.59,138.54,1.44333691]
[1728551259121,7.2166,138.57,138.54,1.44333691]
[1728551259294,7.2166,138.57,138.53,30.995284]
[1728551260521,0.46892,138.59,138.53,30.995284]
[1728551260522,0.46892,138.59,138.54,1.44334222]
[1728551260712,15.08268676,138.6,138.56,25.2591]
[1728551261020,15.08268676,138.6,138.56,25.2593]
[1728551261221,7.86768676,138.6,138.57,8.65952766]
[1728551261418,7.86768676,138.6,138.58,23.776884]
[1728551261621,7.86768676,138.6,138.58,30.992684]
[1728551261998,7.86768676,138.6,138.59,7.2155]
[1728551262221,0.46892,138.65,138.58,45.69913657]
[1728551262524,7.2122,138.66,138.62,7.2138]
[1728551262723,7.2122,138.66,138.61,23.776884]
[1728551263408,7.2122,138.66,138.61,30.990984]
[1728551264827,7.2122,138.66,138.62,1.44254775]
[1728551265026,7.2122,138.66,138.62,7.2139]
[1728551265922,0.46892,138.68,138.61,23.776884]
[1728551266097,7.2127,138.65,138.61,23.776884]
[1728551267100,7.213,138.64,138.61,23.776884]
[1728551267514,7.2125,138.65,138.61,23.776884]
[1728551267704,7.2125,138.65,138.62,1.44257683]
[1728551267905,7.2125,138.65,138.61,30.990984]
[1728551268132,7.2125,138.65,138.62,1.44257683]
[1728551268329,0.46892,138.68,138.63,25.21946157]
[1728551268495,7.2115,138.67,138.63,7.2132]
[1728551268694,7.2115,138.67,138.63,8.65560879]
[1728551269213,7.2115,138.67,138.64,23.776884]
[1728551269595,0.12549,138.7,138.64,25.21920278]
[1728551269903,7.2109,138.68,138.65,1.44229]
[1728551270304,7.2109,138.68,138.64,30.989584]
[1728551270723,7.2109,138.68,138.65,1.44229099]
[1728551271120,7.2105,138.69,138.65,7.2123]
[1728551271424,7.2105,138.69,138.66,1.44229269]
[1728551271717,7.2105,138.69,138.64,49.021284]
[1728551272725,7.212,138.66,138.63,21.6991]
[1728551276131,7.2124,138.65,138.63,21.6991]
[1728551278218,7.2124,138.65,138.61,25.2497]
[1728551278434,7.2124,138.65,138.62,23.776884]
[1728551280318,0.12549,138.67,138.6,21.6577]
[1728551280628,7.2129,138.64,138.61,23.776884]
[1728551280930,18.49612,138.68,138.61,23.776884]
[1728551281225,7.212,138.66,138.62,7.2138]
[1728551281439,7.68132,138.65,138.61,30.991184]
[1728551282904,0.46892,138.65,138.6,39.6949]
[1728551283208,0.12549,138.65,138.57,18.0404]
[1728551283532,0.12549,138.65,138.57,25.2566]
[1728551283533,7.2145,138.61,138.57,25.2566]
[1728551283718,7.2141,138.62,138.58,7.2159]
[1728551283919,7.68202,138.64,138.6,7.2149]
[1728551284526,7.2131,138.64,138.6,7.2149]
[1728551285331,0.46892,138.63,138.6,7.2149]
[1728551285533,7.68202,138.64,138.6,7.2149]
[1728551285827,7.2131,138.64,138.6,7.2149]
[1728551286428,0.46892,138.63,138.6,7.2149]
[1728551286634,7.2131,138.64,138.6,7.2149]
[1728551288822,0.46892,138.63,138.6,7.2149]
[1728551289542,0.46892,138.63,138.6,23.776884]
[1728551289723,7.2135,138.63,138.6,23.776884]
[1728551290125,7.2131,138.64,138.6,30.991784]
[1728551292547,0.46892,138.63,138.6,30.991784]
[1728551292920,7.2125,138.65,138.61,8.65717621]
[1728551293246,22.94246591,138.74,138.61,8.65717621]
[1728551293247,0.46892,138.7,138.67,7.2113]
[1728551293618,0.46892,138.71,138.67,7.2113]
[1728551293844,0.46892,138.71,138.67,1.4420653]
[1728551294016,0.46892,138.74,138.68,14.0137135]
[1728551294228,0.46892,138.74,138.69,8.65209642]
[1728551294229,7.2083,138.73,138.69,8.65209642]
[1728551294627,0.46892,138.74,138.7,21.2234135]
[1728551294846,7.67612,138.75,138.7,21.2234135]
[1728551295251,7.85929143,138.76,138.7,21.2234135]
[1728551295252,15.06599143,138.76,138.71,32.42768882]
[1728551295456,7.85929143,138.76,138.71,39.23220232]
[1728551295749,7.85929143,138.76,138.72,21.2224135]
[1728551296051,7.85929143,138.76,138.73,1.4414611]
[1728551296347,7.85929143,138.76,138.73,7.208]
[1728551296557,7.85929143,138.76,138.73,23.776884]
[1728551297348,15.06609143,138.76,138.73,23.776884]
[1728551298051,7.85929143,138.76,138.72,6.1012]
[1728551298258,7.2077,138.74,138.72,6.1012]
[1728551298641,7.2077,138.74,138.7,23.776884]
[1728551301357,0.46892,138.75,138.7,23.776884]
[1728551301547,7.2086,138.73,138.7,23.776884]
[1728551303141,7.2078,138.74,138.7,32.42811417]
[1728551303548,7.85929143,138.76,138.72,23.776884]
[1728551303756,15.06609143,138.76,138.73,1.44141811]
[1728551304861,15.06609143,138.76,138.72,30.985584]
[1728551307365,0.46892,138.75,138.71,23.776884]
[1728551307663,7.2081,138.74,138.71,23.776884]
[1728551308370,7.67622,138.75,138.71,30.986084]
[1728551308745,7.2073,138.75,138.71,30.986084]
[1728551309269,15.06609143,138.76,138.72,7.2087]
[1728551309669,7.2068,138.76,138.72,7.2087]
[1728551310249,7.2072,138.75,138.71,30.985884]
[1728551314872,0.46892,138.74,138.69,6.2536]
[1728551315077,0.46892,138.75,138.69,6.2536]
[1728551315379,7.2083,138.73,138.69,13.4636]
[1728551316072,7.2073,138.75,138.71,7.2091]
[1728551316776,7.2073,138.75,138.72,23.776884]
[1728551316983,0.46892,138.78,138.72,23.776884]
[1728551316984,7.2078,138.74,138.72,23.776884]
[1728551317157,7.2078,138.74,138.71,23.776884]
[1728551318455,7.2074,138.75,138.72,1.44149525]
[1728551318965,0.46892,138.78,138.72,16.3786]
[1728551319164,7.2067,138.76,138.73,30.985084]
[1728551319564,7.2063,138.77,138.73,30.985084]
[1728551319754,7.2058,138.78,138.74,8.64895149]
[1728551319950,7.2058,138.78,138.75,23.776884]
[1728551320154,7.2058,138.78,138.74,8.64895149]
[1728551320155,7.2058,138.78,138.76,1.44115566]
[1728551320407,7.85733605,138.79,138.76,1.44115566]
[1728551320408,15.06283605,138.79,138.76,23.776884]
[1728551321783,7.2057,138.78,138.76,6.2084]
[1728551322078,7.2067,138.76,138.74,23.776884]
[1728551322298,0.46892,138.79,138.74,23.776884]
[1728551323482,7.2063,138.77,138.74,23.776884]
[1728551323685,7.2081,138.74,138.72,22.9681]
[1728551323867,7.2081,138.74,138.73,23.776884]
[1728551324875,7.2073,138.75,138.73,23.776884]
[1728551326796,7.2078,138.74,138.72,22.9681]
[1728551327371,7.2078,138.74,138.7,25.2335]
[1728551327372,7.2082,138.73,138.7,18.0239]
[1728551327589,7.2082,138.73,138.71,23.776884]
[1728551329081,7.2078,138.74,138.71,23.776884]
[1728551331091,7.2078,138.74,138.71,30.986084]
[1728551331482,7.2073,138.75,138.72,1.4415348]
[1728551331702,7.2073,138.75,138.71,30.986084]
[1728551334404,7.2068,138.76,138.72,7.2085]
[1728551334587,7.2068,138.76,138.73,23.776884]
[1728551334786,7.2063,138.77,138.73,30.984884]
[1728551336810,0.46892,138.8,138.75,23.776884]
[1728551336989,38.26148505,138.81,138.77,7.2061]
[1728551337191,27.94276221,138.81,138.78,1.44092618]
[1728551337511,15.06045567,138.81,138.78,1.44092618]
[1728551337711,15.06045567,138.81,138.77,7.2061]
[1728551337897,7.85605567,138.81,138.77,7.2061]
[1728551338084,7.2046,138.8,138.77,7.2061]
[1728551338285,7.2046,138.8,138.78,1.44091549]
[1728551338585,15.06025567,138.81,138.78,1.44091549]
[1728551338994,7.2051,138.79,138.77,23.776884]
[1728551340899,7.2051,138.79,138.75,7.2071]
[1728551341079,7.2066,138.77,138.74,15.5046]
[1728551341288,0.12549,138.79,138.73,6.4156]
[1728551341480,7.2076,138.75,138.73,6.4156]
[1728551341684,7.2076,138.75,138.71,7.2088]
[1728551343212,7.2076,138.75,138.72,23.776884]
[1728551349311,7.2083,138.73,138.7,40.4148]
[1728551349519,7.2084,138.73,138.7,22.3914]
[1728551350207,7.2084,138.73,138.7,29.6012]
[1728551350399,7.2077,138.74,138.71,1.44162222]
[1728551350929,7.2077,138.74,138.71,23.776884]
[1728551354015,7.2082,138.73,138.71,23.776884]
[1728551355014,7.2082,138.73,138.7,22.3914]
[1728551355217,7.2088,138.72,138.7,23.776884]
[1728551355718,7.2088,138.72,138.69,18.0256]
[1728551357223,18.14499,138.74,138.67,13.852]
[1728551357422,7.2098,138.7,138.67,6.6408]
[1728551357619,0.46892,138.73,138.66,41.6979]
[1728551357620,7.2104,138.69,138.66,16.4578]
[1728551358620,7.2109,138.68,138.64,13.2377]
[1728551358914,7.2104,138.69,138.65,7.2123]
[1728551359821,7.2101,138.7,138.66,8.65366624]
[1728551361000,7.2101,138.7,138.66,7.2116]
[1728551362427,7.2101,138.7,138.67,1.4420691]
[1728551362626,7.2101,138.7,138.66,7.2116]
[1728551363009,7.2104,138.69,138.65,49.019484]
[1728551366332,7.2104,138.69,138.66,1.44217415]
[1728551366533,7.2104,138.69,138.65,49.019484]
[1728551373325,7.2104,138.69,138.65,50.46157175]
[1728551374538,7.2104,138.69,138.65,49.019484]
[1728551375445,20.59441,138.72,138.65,49.019484]
[1728551375612,7.2108,138.68,138.65,49.019484]
[1728551375947,7.2108,138.68,138.65,41.807284]
[1728551376943,7.2108,138.68,138.65,23.776884]
[1728551381548,7.2114,138.67,138.65,23.776884]
[1728551382617,18.0258,138.69,138.63,15.3867]
[1728551382818,7.2129,138.64,138.6,29.1345]
[1728551383724,0.46892,138.68,138.6,21.9197]
[1728551383917,7.2127,138.65,138.62,23.776884]
[1728551384445,18.0285,138.67,138.61,23.776884]
[1728551384614,7.2134,138.63,138.61,23.776884]
[1728551386117,0.46892,138.66,138.61,23.776884]
[1728551386118,7.2131,138.64,138.61,23.776884]
[1728551391825,0.46892,138.66,138.61,23.776884]
[1728551392125,7.2135,138.63,138.61,23.776884]
[1728551392339,7.2154,138.6,138.57,21.6836]
[1728551393128,7.2156,138.59,138.57,21.6836]
[1728551393336,0.46892,138.63,138.57,21.6836]
[1728551393337,7.216,138.58,138.57,21.6836]
[1728551393537,7.2166,138.57,138.55,20.0]
[1728551393744,7.2161,138.58,138.55,20.0]
[1728551393942,7.2166,138.57,138.54,23.0499]
[1728551394122,7.2161,138.58,138.54,30.268]
[1728551394451,7.2161,138.58,138.55,23.776884]
[1728551395151,7.2169,138.57,138.55,23.776884]
[1728551395335,7.217,138.56,138.54,23.0499]
[1728551395733,0.46892,138.6,138.54,23.0499]
[1728551395734,7.2167,138.57,138.54,23.0499]
[1728551396732,7.2167,138.57,138.55,23.776884]
[1728551397540,7.2171,138.56,138.54,23.0499]
[1728551398251,0.46892,138.6,138.51,7.2196]
[1728551398252,7.2176,138.55,138.51,7.2196]
[1728551399034,0.46892,138.58,138.51,43.902374]
[1728551399351,0.46892,138.58,138.53,23.776884]
[1728551399543,7.2172,138.56,138.52,25.2663]
[1728551401361,7.2172,138.56,138.53,23.776884]
[1728551401852,7.2177,138.55,138.52,18.0476]
[1728551402055,7.2177,138.55,138.53,1.4434733]
[1728551402239,7.2172,138.56,138.52,25.2667]
[1728551402861,18.0391,138.59,138.53,8.6619027]
[1728551402862,7.2167,138.57,138.53,8.6619027]
[1728551403041,7.2167,138.57,138.54,23.776884]
[1728551404360,7.217,138.56,138.54,23.776884]
[1728551404563,18.0376,138.6,138.54,23.776884]
[1728551404564,7.2167,138.57,138.54,23.776884]
[1728551408238,7.2167,138.57,138.55,1.44324579]
[1728551408460,7.2167,138.57,138.54,23.776884]
[1728551409028,7.2175,138.56,138.53,23.776884]
[1728551413466,7.218,138.55,138.53,23.776884]
[1728551413762,7.2181,138.54,138.52,23.776884]
[1728551413939,7.2177,138.55,138.52,25.2203825]
[1728551414565,7.2172,138.56,138.52,32.4393825]
[1728551415267,7.2172,138.56,138.52,30.995884]
[1728551415473,0.46892,138.57,138.52,23.776884]
[1728551415661,7.218,138.55,138.52,23.776884]
[1728551415867,7.2181,138.54,138.52,23.776884]
[1728551416368,7.2186,138.53,138.5,21.6708]
[1728551416570,20.0,138.55,138.47,1.25291153]
[1728551416776,7.2202,138.5,138.46,29.2233]
[1728551416957,7.2197,138.51,138.47,7.2217]
[1728551417272,7.2197,138.51,138.46,29.2235]
[1728551417576,18.51472,138.54,138.46,29.2235]
[1728551417748,7.2198,138.51,138.46,29.2235]
[1728551418139,7.2198,138.51,138.47,23.776884]
[1728551419052,7.2193,138.52,138.47,30.998484]
[1728551419472,7.2187,138.53,138.49,23.776884]
[1728551419770,7.2187,138.53,138.5,1.44373088]
[1728551421178,7.2187,138.53,138.49,30.997484]
[1728551421764,0.46892,138.56,138.52,7.2191]
[1728551421972,7.2175,138.56,138.53,1.44357071]
[1728551422187,0.46892,138.57,138.52,1.44348048]
[1728551422397,7.2176,138.55,138.53,23.776884]
[1728551423182,7.2176,138.55,138.52,23.776884]
[1728551424093,7.2181,138.54,138.52,23.776884]
[1728551424290,7.2193,138.52,138.5,23.776884]
[1728551425399,7.2193,138.52,138.49,20.0]
[1728551425689,7.2193,138.52,138.5,1.44382647]
[1728551426189,0.46892,138.55,138.5,1.44382647]
[1728551426398,7.2188,138.53,138.5,1.44382647]
[1728551426888,7.2188,138.53,138.5,23.776884]
[1728551427069,7.2188,138.53,138.51,1.44368498]
[1728551428098,7.2188,138.53,138.5,23.776884]
[1728551428965,7.2182,138.54,138.51,1.44371361]
[1728551429207,7.2182,138.54,138.5,30.996984]
[1728551429495,7.2187,138.53,138.49,30.997484]
[1728551429791,18.16709,138.57,138.49,23.776884]
[1728551429792,0.46892,138.56,138.49,23.776884]
[1728551429997,7.2196,138.52,138.49,23.776884]
[1728551430510,7.2196,138.52,138.5,1.4438091]
[1728551430790,7.2196,138.52,138.49,23.776884]
[1728551430980,7.2196,138.52,138.5,1.44381646]
[1728551431908,7.2183,138.54,138.5,1.44381556]
[1728551432080,7.2183,138.54,138.51,23.776884]
[1728551432394,7.2183,138.54,138.52,1.44364068]
[1728551433097,7.2183,138.54,138.51,23.776884]
[1728551435769,7.2177,138.55,138.52,1.44360341]
[1728551436093,7.2177,138.55,138.51,30.996484]
[1728551436470,7.2177,138.55,138.51,53.775484]
[1728551437914,7.2177,138.55,138.53,23.776884]
[1728551438293,7.2177,138.55,138.52,23.776884]
[1728551440545,7.2177,138.55,138.53,1.44344463]
[1728551440711,7.2177,138.55,138.52,23.776884]
[1728551440919,7.2177,138.55,138.53,1.44344892]
[1728551441283,7.2171,138.56,138.54,23.776884]
[1728551441592,7.2171,138.56,138.52,30.995984]
[1728551442196,7.2165,138.57,138.54,23.776884]
[1728551442821,7.2165,138.57,138.54,30.994884]
[1728551443191,7.2165,138.57,138.53,30.995284]
[1728551444193,7.2162,138.58,138.54,7.218]
[1728551444520,7.2162,138.58,138.55,23.776884]
[1728551445222,0.46892,138.59,138.54,23.776884]
[1728551445525,0.46892,138.59,138.53,23.776884]
[1728551446016,7.2177,138.55,138.53,23.776884]
[1728551446223,7.2181,138.54,138.52,23.776884]
[1728551447196,7.2179,138.55,138.52,23.776884]
[1728551449397,7.2179,138.55,138.52,30.995984]
[1728551453936,7.2166,138.57,138.54,23.776884]
[1728551455433,7.2166,138.57,138.55,23.776884]
[1728551456227,7.2183,138.54,138.51,22.779]
[1728551456417,36.67071,138.6,138.51,22.779]
[1728551456418,7.2177,138.55,138.52,1.44352164]
[1728551456731,7.2177,138.55,138.51,29.9983]
[1728551457234,7.2172,138.56,138.51,29.9983]
[1728551457523,7.2172,138.56,138.52,23.776884]
[1728551457929,7.2176,138.55,138.52,23.776884]
[1728551461516,7.2166,138.57,138.54,23.776884]
[1728551463016,7.2171,138.56,138.53,23.776884]
[1728551466227,7.2177,138.55,138.52,18.0475]
[1728551466543,7.2172,138.56,138.52,25.2666]
[1728551466742,0.46892,138.59,138.52,25.2666]
[1728551466743,7.2176,138.55,138.52,25.2666]
[1728551467639,7.2176,138.55,138.53,23.776884]
[1728551467842,18.0402,138.58,138.52,23.776884]
[1728551468140,0.46892,138.57,138.52,23.776884]
[1728551469421,7.2177,138.55,138.52,23.776884]
[1728551471923,7.2171,138.56,138.54,23.776884]
[1728551472253,7.2171,138.56,138.51,40.828]
[1728551472254,7.2171,138.56,138.55,23.776884]
[1728551473119,7.2171,138.56,138.45,1.25247004]
[1728551473120,12.0554,138.54,138.45,1.25247004]
[1728551473325,7.2232,138.45,138.42,15.4057]
[1728551473827,7.2234,138.44,138.42,15.4057]
[1728551474030,0.46892,138.49,138.42,15.4057]
[1728551474031,20.46892,138.49,138.42,16.85017363]
[1728551474241,18.051,138.5,138.42,36.63182152]